[Event "Teplice Open 2019"]
[Site "Teplice"]
[Date "2019.06.20"]
[Round "6.33"]
[White "Riha, Vojtech"]
[Black "Kostolansky, Sebastian Lukas"]
[Result "0-1"]
[ECO "B09"]
[WhiteElo "2244"]
[BlackElo "2379"]
[Annotator "NA"]
[PlyCount "82"]
[EventDate "2019.06.15"]
[EventType "swiss"]
[EventCountry "CZE"]
[SourceTitle "playchess.com"]
[Source "ChessBase"]
[SourceQuality "1"]
[TimeControl "40/5400+30:1800+30"]

1. e4 {[%emt 0:00:00]} g6 {[%emt 0:00:00]} 2. d4 {[%emt 0:00:00]} Bg7 {[%emt 0:00:00]} 3. Nc3 {[%emt 0:00:00]} d6 {[%emt 0:00:00]} 4. f4 {[%emt 0:00:57]} Nf6 {[%emt 0:00:00]} 5. Nf3 {[%emt 0:00:27]} O-O {[%emt 0:00:07]} 6. Bd3 {[%emt 0:01:00]} Na6 {[%emt 0:12:12]} 7. O-O {[%emt 0:08:57]} c5 {[%emt 0:00:05]} 8. d5 {[%emt 0:02:26]} Bg4 {[%emt 0:00:15]} 9. h3 {[%emt 0:00:58]} Bxf3 {[%emt 0:00:07]} 10. Qxf3 {[%emt 0:00:05]} Nb4 {[%emt 0:00:17]} 11. Be3 {[%emt 0:10:00]} Rc8 {[%emt 0:10:05]} 12. Rf2 {[%emt 0:05:04]} Nxd3 {[%emt 0:01:30]} 13. cxd3 {[%emt 0:00:04]} Nd7 {[%emt 0:04:03]} 14. h4 {[%emt 0:02:59]} Qa5 {[%emt 0:07:57]} 15. h5 {[%emt 0:05:21]} Bxc3 {[%emt 0:16:42]} 16. bxc3 {[%emt 0:00:04]} Qxc3 {[%emt 0:00:18]} 17. Rd1 {[%emt 0:00:06]} c4 {[%emt 0:08:06]} 18. d4 {[%emt 0:13:18]} gxh5 {[%emt 0:12:34]} 19. e5 {[%emt 0:06:42]} Kh8 {[%emt 0:02:15]} 20. Qh3 {[%emt 0:08:20]} Nb6 {[%emt 0:08:22]} 21. exd6 {[%emt 0:02:56]} exd6 {[%emt 0:00:30]} 22. Rf3 {[%emt 0:00:16]} Qc2 {[%emt 0:01:38]} 23. Rc1 {[%emt 0:01:22]} Qe4 {[%emt 0:07:15]} 24. Bf2 {[%emt 0:15:47]} Nxd5 {[%emt 0:06:04]} 25. Qxh5 {[%emt 0:01:13]} Rg8 {[%emt 0:01:25]} 26. Re1 {[%emt 0:01:57]} Qg6 {[%emt 0:00:21]} 27. Qh3 {[%emt 0:05:27]} c3 {[%emt 0:00:23]} 28. f5 {[%emt 0:00:40]} Qg4 {[%emt 0:00:36]} 29. Qxg4 {[%emt 0:03:41]} Rxg4 {[%emt 0:00:05]} 30. Rc1 {[%emt 0:00:05]} b5 {[%emt 0:00:35]} 31. a3 {[%emt 0:00:20]} a5 {[%emt 0:00:15]} 32. Bg3 {[%emt 0:01:51]} b4 {[%emt 0:00:39]} 33. axb4 {[%emt 0:00:59]} axb4 {[%emt 0:00:06]} 34. Bxd6 {[%emt 0:00:12]} b3 {[%emt 0:00:09]} 35. Ba3 {[%emt 0:00:36]} Ra8 {[%emt 0:00:22]} 36. Ra1 {[%emt 0:01:17]} Rxd4 {[%emt 0:00:33]} 37. f6 {[%emt 0:01:03]} Rda4 {[%emt 0:01:37]} 38. Rd3 {[%emt 0:01:27]} Rxa3 {[%emt 0:00:22]} 39. Rxa3 {[%emt 0:00:09]} Rxa3 {[%emt 0:00:05]} 40. Rxd5 {[%emt 0:00:04]} h6 {[%emt 0:00:20]} 41. Rd8+ {[%emt 0:30:22]} Kh7 {[%emt 0:30:05]} 0-1

[Event "Teplice Open 2019"]
[Site "Teplice"]
[Date "2019.06.20"]
[Round "6.34"]
[White "Pajeken, Jakob Leon"]
[Black "Ehrke, Michael"]
[Result "1/2-1/2"]
[ECO "D30"]
[WhiteElo "2359"]
[BlackElo "2222"]
[Annotator "NA"]
[PlyCount "54"]
[EventDate "2019.06.15"]
[EventType "swiss"]
[EventCountry "CZE"]
[SourceTitle "playchess.com"]
[Source "ChessBase"]
[SourceQuality "1"]
[TimeControl "40/5400+30:1800+30"]

1. d4 {[%emt 0:00:00]} d5 {[%emt 0:00:00]} 2. c4 {[%emt 0:01:45]} e6 {[%emt 0:00:36]} 3. Nf3 {[%emt 0:00:22]} c5 {[%emt 0:00:36]} 4. e3 {[%emt 0:00:18]} Nf6 {[%emt 0:01:54]} 5. cxd5 {[%emt 0:00:15]} exd5 {[%emt 0:00:59]} 6. Bb5+ {[%emt 0:00:11]} Bd7 {[%emt 0:03:21]} 7. Bxd7+ {[%emt 0:00:10]} Nbxd7 {[%emt 0:03:14]} 8. O-O {[%emt 0:00:13]} Be7 {[%emt 0:01:39]} 9. Nc3 {[%emt 0:01:13]} b6 {[%emt 0:06:06]} 10. Ne5 {[%emt 0:06:54]} O-O {[%emt 0:17:14]} 11. Nc6 {[%emt 0:00:48]} Qe8 {[%emt 0:00:06]} 12. dxc5 {[%emt 0:01:48]} Bxc5 {[%emt 0:00:51]} 13. Nxd5 {[%emt 0:02:46]} Nxd5 {[%emt 0:00:32]} 14. Qxd5 {[%emt 0:00:11]} Nf6 {[%emt 0:05:31]} 15. Qf3 {[%emt 0:01:52]} Rc8 {[%emt 0:00:48]} 16. Nd4 {[%emt 0:00:59]} Qe5 {[%emt 0:03:29]} 17. Nf5 {[%emt 0:11:25]} Rfd8 {[%emt 0:06:32]} 18. Rb1 {[%emt 0:02:50]} Qe6 {[%emt 0:05:28]} 19. b4 {[%emt 0:02:56]} Bf8 {[%emt 0:02:44]} 20. Bb2 {[%emt 0:00:49]} Ne4 {[%emt 0:08:32]} 21. Nd4 {[%emt 0:08:31]} Qg6 {[%emt 0:02:24]} 22. Rbd1 {[%emt 0:09:04]} Bxb4 {[%emt 0:04:14]} 23. Nf5 {[%emt 0:00:50]} Ng5 {[%emt 0:06:05]} 24. Qg4 {[%emt 0:00:26]} Ne6 {[%emt 0:05:38]} 25. Qf3 {[%emt 0:01:57]} Ng5 {[%emt 0:02:01]} 26. Qg4 {[%emt 0:00:15]} Ne6 {[%emt 0:00:12]} 27. Qf3 {[%emt 0:00:47]} Ng5 {[%emt 0:02:09]} 1/2-1/2

[Event "Teplice Open 2019"]
[Site "Teplice"]
[Date "2019.06.20"]
[Round "6.35"]
[White "Lorscheid, Gerhard"]
[Black "Krishna, Teja N."]
[Result "0-1"]
[ECO "D00"]
[WhiteElo "2214"]
[BlackElo "2357"]
[Annotator "NA"]
[PlyCount "56"]
[EventDate "2019.06.15"]
[EventType "swiss"]
[EventCountry "CZE"]
[SourceTitle "playchess.com"]
[Source "ChessBase"]
[SourceQuality "1"]
[TimeControl "40/5400+30:1800+30"]

1. d4 {[%emt 0:00:33]} Nf6 {[%emt 0:01:07]} 2. Bf4 {[%emt 0:00:41]} d5 {[%emt 0:02:28]} 3. e3 {[%emt 0:00:09]} c5 {[%emt 0:00:02]} 4. dxc5 {[%emt 0:00:22]} Nc6 {[%emt 0:01:28]} 5. Nf3 {[%emt 0:00:08]} Bg4 {[%emt 0:01:22]} 6. Be2 {[%emt 0:05:02]} e6 {[%emt 0:03:01]} 7. O-O {[%emt 0:00:27]} Bxc5 {[%emt 0:00:09]} 8. a3 {[%emt 0:00:41]} O-O {[%emt 0:01:16]} 9. Nbd2 {[%emt 0:01:13]} Rc8 {[%emt 0:04:02]} 10. h3 {[%emt 0:03:20]} Bh5 {[%emt 0:02:29]} 11. c4 {[%emt 0:05:21]} Qe7 {[%emt 0:04:55]} 12. Ne5 {[%emt 0:06:45]} Bg6 {[%emt 0:05:49]} 13. Rc1 {[%emt 0:06:58]} Rfd8 {[%emt 0:03:36]} 14. b4 {[%emt 0:11:16]} Bd6 {[%emt 0:02:00]} 15. Nxg6 {[%emt 0:00:07]} hxg6 {[%emt 0:00:05]} 16. Bxd6 {[%emt 0:01:27]} Qxd6 {[%emt 0:00:15]} 17. c5 {[%emt 0:09:31]} Qe7 {[%emt 0:00:57]} 18. b5 {[%emt 0:08:35]} Nb8 {[%emt 0:02:55]} 19. Qa4 {[%emt 0:00:39]} a6 {[%emt 0:00:24]} 20. bxa6 {[%emt 0:01:18]} Nxa6 {[%emt 0:00:08]} 21. Bxa6 {[%emt 0:10:34]} Ra8 {[%emt 0:00:17]} 22. Qb4 {[%emt 0:00:17]} Rxa6 {[%emt 0:00:28]} 23. Rb1 {[%emt 0:00:30]} Rda8 {[%emt 0:03:02]} 24. Rfc1 {[%emt 0:03:22]} R8a7 {[%emt 0:01:54]} 25. Rc3 {[%emt 0:02:30]} Nd7 {[%emt 0:04:08]} 26. c6 {[%emt 0:01:06]} Qxb4 {[%emt 0:00:24]} 27. cxd7 {[%emt 0:02:24]} Qf8 {[%emt 0:00:10]} 28. Rc8 {[%emt 0:04:07]} Rd6 {[%emt 0:00:05]} 0-1

[Event "Teplice Open 2019"]
[Site "Teplice"]
[Date "2019.06.20"]
[Round "6.36"]
[White "Risting, Eivind Olav"]
[Black "Mitscherling, Andreas"]
[Result "1-0"]
[ECO "D20"]
[WhiteElo "2357"]
[BlackElo "2175"]
[Annotator "NA"]
[PlyCount "95"]
[EventDate "2019.06.15"]
[EventType "swiss"]
[EventCountry "CZE"]
[SourceTitle "playchess.com"]
[Source "ChessBase"]
[SourceQuality "1"]
[TimeControl "40/5400+30:1800+30"]

1. d4 {[%emt 0:00:00]} d5 {[%emt 0:00:00]} 2. c4 {[%emt 0:00:00]} dxc4 {[%emt 0:00:00]} 3. e4 {[%emt 0:00:03]} e5 {[%emt 0:00:02]} 4. Nf3 {[%emt 0:00:21]} exd4 {[%emt 0:00:09]} 5. Bxc4 {[%emt 0:00:25]} Nc6 {[%emt 0:02:15]} 6. O-O {[%emt 0:00:43]} Qf6 {[%emt 0:04:43]} 7. e5 {[%emt 0:17:16]} Qg6 {[%emt 0:00:05]} 8. Ng5 {[%emt 0:03:24]} Be6 {[%emt 0:03:26]} 9. Bxe6 {[%emt 0:12:28]} fxe6 {[%emt 0:00:09]} 10. Qb3 {[%emt 0:00:03]} O-O-O {[%emt 0:01:07]} 11. Nxe6 {[%emt 0:03:07]} Re8 {[%emt 0:00:49]} 12. Nxf8 {[%emt 0:00:56]} Rxf8 {[%emt 0:00:02]} 13. f4 {[%emt 0:00:53]} Nge7 {[%emt 0:00:09]} 14. Nd2 {[%emt 0:00:44]} Rd8 {[%emt 0:07:44]} 15. Nf3 {[%emt 0:05:40]} h6 {[%emt 0:07:29]} 16. Bd2 {[%emt 0:04:31]} Nf5 {[%emt 0:00:07]} 17. Qd3 {[%emt 0:01:34]} Rhf8 {[%emt 0:02:26]} 18. Rae1 {[%emt 0:05:21]} Nh4 {[%emt 0:14:16]} 19. Qxg6 {[%emt 0:01:52]} Nxg6 {[%emt 0:00:02]} 20. Re4 {[%emt 0:00:19]} Rd5 {[%emt 0:05:10]} 21. g4 {[%emt 0:01:06]} h5 {[%emt 0:02:39]} 22. h3 {[%emt 0:01:13]} Rh8 {[%emt 0:00:28]} 23. Kg2 {[%emt 0:03:27]} d3 {[%emt 0:00:32]} 24. Kg3 {[%emt 0:04:18]} Re8 {[%emt 0:04:30]} 25. Rc1 {[%emt 0:05:27]} Red8 {[%emt 0:05:33]} 26. Bc3 {[%emt 0:03:58]} Rc5 {[%emt 0:04:48]} 27. Rd1 {[%emt 0:01:00]} b5 {[%emt 0:01:11]} 28. e6 {[%emt 0:01:53]} hxg4 {[%emt 0:04:31]} 29. hxg4 {[%emt 0:00:07]} Rc4 {[%emt 0:12:17]} 30. Rxc4 {[%emt 0:00:41]} bxc4 {[%emt 0:00:02]} 31. Bxg7 {[%emt 0:04:02]} Rg8 {[%emt 0:00:30]} 32. Bc3 {[%emt 0:03:02]} Nge7 {[%emt 0:00:22]} 33. g5 {[%emt 0:03:57]} Nf5+ {[%emt 0:00:15]} 34. Kf2 {[%emt 0:00:06]} Nce7 {[%emt 0:01:14]} 35. Re1 {[%emt 0:01:28]} Ng6 {[%emt 0:01:21]} 36. Re4 {[%emt 0:02:21]} Nd6 {[%emt 0:00:06]} 37. Rd4 {[%emt 0:01:35]} Re8 {[%emt 0:00:18]} 38. Rxd6 {[%emt 0:01:26]} cxd6 {[%emt 0:00:22]} 39. f5 {[%emt 0:00:06]} Nf4 {[%emt 0:00:10]} 40. g6 {[%emt 0:01:09]} Nxg6 {[%emt 0:01:25]} 41. fxg6 {[%emt 0:30:08]} Rxe6 {[%emt 0:30:04]} 42. g7 {[%emt 0:00:21]} Rg6 {[%emt 0:01:00]} 43. Nh4 {[%emt 0:02:16]} Rg5 {[%emt 0:00:22]} 44. Bf6 {[%emt 0:02:26]} Rg4 {[%emt 0:00:16]} 45. Nf5 {[%emt 0:00:51]} Kd7 {[%emt 0:00:12]} 46. Nh6 {[%emt 0:00:58]} d2 {[%emt 0:01:07]} 47. Ke2 {[%emt 0:00:27]} Rg2+ {[%emt 0:00:09]} 48. Kd1 {[%emt 0:00:04]} 1-0

[Event "Teplice Open 2019"]
[Site "Teplice"]
[Date "2019.06.20"]
[Round "6.37"]
[White "Schmidt, Tommy B."]
[Black "Eden, James"]
[Result "0-1"]
[ECO "A11"]
[WhiteElo "2205"]
[BlackElo "2346"]
[Annotator "NA"]
[PlyCount "80"]
[EventDate "2019.06.15"]
[EventType "swiss"]
[EventCountry "CZE"]
[SourceTitle "playchess.com"]
[Source "ChessBase"]
[SourceQuality "1"]
[TimeControl "40/5400+30:1800+30"]

1. Nf3 {[%emt 0:00:00]} Nf6 {[%emt 0:00:01]} 2. c4 {[%emt 0:00:00]} c6 {[%emt 0:00:31]} 3. g3 {[%emt 0:00:04]} d5 {[%emt 0:00:46]} 4. Bg2 {[%emt 0:00:17]} dxc4 {[%emt 0:01:08]} 5. O-O {[%emt 0:00:54]} e6 {[%emt 0:01:47]} 6. Qc2 {[%emt 0:00:10]} b5 {[%emt 0:01:11]} 7. a4 {[%emt 0:00:44]} Bb7 {[%emt 0:01:23]} 8. b3 {[%emt 0:03:04]} cxb3 {[%emt 0:02:42]} 9. Qxb3 {[%emt 0:00:05]} b4 {[%emt 0:02:03]} 10. d4 {[%emt 0:09:52]} a5 {[%emt 0:01:55]} 11. Ne5 {[%emt 0:14:19]} Nbd7 {[%emt 0:15:10]} 12. Nxc6 {[%emt 0:26:43]} Qb6 {[%emt 0:00:53]} 13. Be3 {[%emt 0:12:47]} Nd5 {[%emt 0:02:20]} 14. Bxd5 {[%emt 0:04:42]} exd5 {[%emt 0:00:32]} 15. Ne5 {[%emt 0:02:58]} Nxe5 {[%emt 0:01:06]} 16. dxe5 {[%emt 0:00:04]} d4 {[%emt 0:02:34]} 17. Bf4 {[%emt 0:02:13]} Rc8 {[%emt 0:02:36]} 18. Nd2 {[%emt 0:00:55]} Rc3 {[%emt 0:00:32]} 19. Qb1 {[%emt 0:00:17]} Bc5 {[%emt 0:09:58]} 20. Ne4 {[%emt 0:01:39]} Qc6 {[%emt 0:00:43]} 21. f3 {[%emt 0:00:17]} O-O {[%emt 0:02:26]} 22. Kg2 {[%emt 0:08:25]} h6 {[%emt 0:03:16]} 23. h4 {[%emt 0:00:10]} Be7 {[%emt 0:00:56]} 24. g4 {[%emt 0:02:16]} Qg6 {[%emt 0:01:21]} 25. h5 {[%emt 0:01:49]} Bxe4 {[%emt 0:00:58]} 26. hxg6 {[%emt 0:00:14]} Bxb1 {[%emt 0:00:06]} 27. Raxb1 {[%emt 0:02:12]} fxg6 {[%emt 0:00:31]} 28. Bg3 {[%emt 0:01:19]} Rc2 {[%emt 0:00:29]} 29. f4 {[%emt 0:04:58]} Rxe2+ {[%emt 0:01:04]} 30. Rf2 {[%emt 0:00:19]} Rxf2+ {[%emt 0:00:20]} 31. Kxf2 {[%emt 0:00:13]} Bg5 {[%emt 0:00:17]} 32. Kf3 {[%emt 0:00:00]} Bxf4 {[%emt 0:00:18]} 33. Bxf4 {[%emt 0:00:00]} g5 {[%emt 0:00:07]} 34. Ke4 {[%emt 0:00:00]} Rxf4+ {[%emt 0:01:17]} 35. Kd5 {[%emt 0:00:00]} d3 {[%emt 0:00:53]} 36. e6 {[%emt 0:01:49]} Kf8 {[%emt 0:01:49]} 37. Rd1 {[%emt 0:00:45]} b3 {[%emt 0:00:42]} 38. Rxd3 {[%emt 0:01:24]} b2 {[%emt 0:00:07]} 39. Rb3 {[%emt 0:00:05]} Rb4 {[%emt 0:00:19]} 40. Rf3+ {[%emt 0:00:05]} Ke8 {[%emt 0:00:22]} 0-1

[Event "Teplice Open 2019"]
[Site "Teplice"]
[Date "2019.06.21"]
[Round "7.1"]
[White "Romanov, Evgeny"]
[Black "Movsesian, Sergei"]
[Result "1/2-1/2"]
[ECO "D38"]
[WhiteElo "2577"]
[BlackElo "2639"]
[Annotator "ChessBase"]
[PlyCount "61"]
[EventDate "2019.06.15"]
[EventType "swiss"]
[EventCountry "CZE"]
[SourceTitle "playchess.com"]
[Source "ChessBase"]
[SourceQuality "1"]
[TimeControl "40/5400+30:1800+30"]

1. d4 {[%emt 0:01:36]} Nf6 {[%emt 0:00:00]} 2. c4 {[%emt 0:00:13]} e6 {[%emt 0:00:06]} 3. Nf3 {[%emt 0:00:17]} d5 {[%emt 0:00:20]} 4. Nc3 {[%emt 0:00:15]} Bb4 {[%emt 0:00:42]} 5. cxd5 {[%emt 0:00:22]} exd5 {[%emt 0:00:11]} 6. Qa4+ {[%emt 0:00:09]} Nc6 {[%emt 0:00:06]} 7. Bg5 {[%emt 0:00:07]} h6 {[%emt 0:03:43]} 8. Bxf6 {[%emt 0:00:11]} Qxf6 {[%emt 0:00:04]} 9. Rc1 {[%emt 0:00:11]} O-O {[%emt 0:01:27]} 10. e3 {[%emt 0:00:08]} Bxc3+ {[%emt 0:08:38]} 11. Rxc3 {[%emt 0:01:09]} Ne7 {[%emt 0:00:25]} 12. Be2 {[%emt 0:06:24]} c6 {[%emt 0:03:00]} 13. b4 {[%emt 0:02:49]} a6 {[%emt 0:03:01]} 14. O-O {[%emt 0:04:15]} Bg4 {[%emt 0:02:15]} 15. h3 {[%emt 0:11:16]} Bxf3 {[%emt 0:02:35]} 16. Bxf3 {[%emt 0:00:08]} Nf5 {[%emt 0:00:30]} 17. Qc2 {[%emt 0:04:43]} Nd6 {[%emt 0:01:53]} 18. a4 {[%emt 0:00:43]} Rfe8 {[%emt 0:03:58]} 19. Rc5 {[%emt 0:05:48]} Nc4 {[%emt 0:07:53]} 20. b5 {[%emt 0:02:02]} axb5 {[%emt 0:00:17]} 21. axb5 {[%emt 0:00:08]} Na3 {[%emt 0:00:54]} 22. Qb2 {[%emt 0:03:58]} Nxb5 {[%emt 0:00:37]} 23. Bxd5 {[%emt 0:00:25]} Nxd4 {[%emt 0:00:22]} 24. exd4 {[%emt 0:01:17]} cxd5 {[%emt 0:00:04]} 25. Rxd5 {[%emt 0:05:42]} Rad8 {[%emt 0:01:20]} 26. Qxb7 {[%emt 0:01:53]} Rxd5 {[%emt 0:00:07]} 27. Qxd5 {[%emt 0:00:04]} Rd8 {[%emt 0:00:05]} 28. Qe5 {[%emt 0:00:12]} Rxd4 {[%emt 0:00:07]} 29. Qxf6 {[%emt 0:00:14]} gxf6 {[%emt 0:00:03]} 30. g3 {[%emt 0:00:08]} Kg7 {[%emt 0:00:02]} 31. Kg2 {[%emt 0:00:06]} 1/2-1/2

[Event "Teplice Open 2019"]
[Site "Teplice"]
[Date "2019.06.21"]
[Round "7.3"]
[White "Santos Latasa, Jaime"]
[Black "Epishin, Vladimir"]
[Result "1-0"]
[ECO "B01"]
[WhiteElo "2588"]
[BlackElo "2564"]
[Annotator "ChessBase"]
[PlyCount "109"]
[EventDate "2019.06.15"]
[EventType "swiss"]
[EventCountry "CZE"]
[SourceTitle "playchess.com"]
[Source "ChessBase"]
[SourceQuality "1"]
[TimeControl "40/5400+30:1800+30"]

1. e4 {[%emt 0:00:00]} d5 {[%emt 0:00:35]} 2. exd5 {[%emt 0:00:00]} Qxd5 {[%emt 0:00:07]} 3. Nc3 {[%emt 0:00:00]} Qd6 {[%emt 0:00:04]} 4. d4 {[%emt 0:00:00]} Nf6 {[%emt 0:00:21]} 5. Nf3 {[%emt 0:00:03]} g6 {[%emt 0:00:12]} 6. Nb5 {[%emt 0:00:39]} Qd8 {[%emt 0:00:07]} 7. Bf4 {[%emt 0:00:48]} Nd5 {[%emt 0:00:47]} 8. Be5 {[%emt 0:01:00]} f6 {[%emt 0:00:06]} 9. Bg3 {[%emt 0:01:07]} c6 {[%emt 0:00:07]} 10. Na3 {[%emt 0:08:06]} Bh6 {[%emt 0:00:34]} 11. c3 {[%emt 0:00:55]} O-O {[%emt 0:03:37]} 12. Bd3 {[%emt 0:02:53]} Be6 {[%emt 0:00:50]} 13. O-O {[%emt 0:02:13]} Bf7 {[%emt 0:00:02]} 14. Re1 {[%emt 0:00:57]} Nd7 {[%emt 0:00:23]} 15. Nc2 {[%emt 0:09:53]} Re8 {[%emt 0:04:30]} 16. Qe2 {[%emt 0:09:17]} a5 {[%emt 0:07:41]} 17. a4 {[%emt 0:05:27]} e5 {[%emt 0:11:11]} 18. dxe5 {[%emt 0:03:56]} fxe5 {[%emt 0:00:09]} 19. Rad1 {[%emt 0:07:18]} Nf4 {[%emt 0:04:18]} 20. Bxf4 {[%emt 0:05:20]} exf4 {[%emt 0:00:09]} 21. Qf1 {[%emt 0:00:08]} Rxe1 {[%emt 0:03:06]} 22. Rxe1 {[%emt 0:01:04]} Nb6 {[%emt 0:04:40]} 23. Ne5 {[%emt 0:01:50]} Qc7 {[%emt 0:00:44]} 24. Nxf7 {[%emt 0:01:42]} Qxf7 {[%emt 0:00:05]} 25. Nd4 {[%emt 0:00:57]} Bg7 {[%emt 0:02:44]} 26. Ne6 {[%emt 0:02:15]} f3 {[%emt 0:06:25]} 27. g3 {[%emt 0:03:11]} Bh6 {[%emt 0:05:43]} 28. Bc2 {[%emt 0:05:11]} Re8 {[%emt 0:01:39]} 29. Nd4 {[%emt 0:01:28]} Rxe1 {[%emt 0:02:16]} 30. Qxe1 {[%emt 0:00:31]} Bg7 {[%emt 0:00:07]} 31. Bb3 {[%emt 0:01:05]} Nd5 {[%emt 0:00:04]} 32. Nc2 {[%emt 0:00:15]} h5 {[%emt 0:05:31]} 33. Ne3 {[%emt 0:02:12]} Kh7 {[%emt 0:01:50]} 34. Nxd5 {[%emt 0:00:37]} cxd5 {[%emt 0:00:01]} 35. Qd1 {[%emt 0:00:12]} Qe7 {[%emt 0:01:15]} 36. Bxd5 {[%emt 0:03:58]} Qe2 {[%emt 0:00:22]} 37. Bxf3 {[%emt 0:00:15]} Qxb2 {[%emt 0:00:57]} 38. Be4 {[%emt 0:00:06]} Kh6 {[%emt 0:00:40]} 39. Qd6 {[%emt 0:00:34]} Qc1+ {[%emt 0:00:04]} 40. Kg2 {[%emt 0:00:05]} Qg5 {[%emt 0:00:02]} 41. c4 {[%emt 0:30:42]} Qf6 {[%emt 0:30:53]} 42. Qxf6 {[%emt 0:01:19]} Bxf6 {[%emt 0:00:02]} 43. Bxb7 {[%emt 0:00:09]} Bd4 {[%emt 0:00:01]} 44. h4 {[%emt 0:01:52]} Kg7 {[%emt 0:00:38]} 45. Be4 {[%emt 0:00:41]} Kf6 {[%emt 0:00:02]} 46. f4 {[%emt 0:01:10]} Bc5 {[%emt 0:00:05]} 47. Kf3 {[%emt 0:00:04]} Bb4 {[%emt 0:00:37]} 48. g4 {[%emt 0:01:04]} hxg4+ {[%emt 0:00:36]} 49. Kxg4 {[%emt 0:00:08]} Bd6 {[%emt 0:00:08]} 50. f5 {[%emt 0:00:18]} gxf5+ {[%emt 0:00:17]} 51. Bxf5 {[%emt 0:00:08]} Ke5 {[%emt 0:00:52]} 52. Bd7 {[%emt 0:01:01]} Bf8 {[%emt 0:01:05]} 53. h5 {[%emt 0:00:15]} Kd6 {[%emt 0:00:35]} 54. Bb5 {[%emt 0:00:18]} Ke5 {[%emt 0:00:03]} 55. Kg5 {[%emt 0:00:08] Kd5} 1-0

[Event "Teplice Open 2019"]
[Site "Teplice"]
[Date "2019.06.21"]
[Round "7.5"]
[White "Van Foreest, Jorden"]
[Black "Gumularz, Szymon"]
[Result "1-0"]
[ECO "A28"]
[WhiteElo "2610"]
[BlackElo "2495"]
[Annotator "ChessBase"]
[PlyCount "81"]
[EventDate "2019.06.15"]
[EventType "swiss"]
[EventCountry "CZE"]
[SourceTitle "playchess.com"]
[Source "ChessBase"]
[SourceQuality "1"]
[TimeControl "40/5400+30:1800+30"]

1. c4 {[%emt 0:00:00]} Nf6 {[%emt 0:00:00]} 2. Nc3 {[%emt 0:00:00]} e5 {[%emt 0:00:00]} 3. Nf3 {[%emt 0:00:00]} Nc6 {[%emt 0:00:03]} 4. e4 {[%emt 0:00:00]} d6 {[%emt 0:00:46]} 5. d4 {[%emt 0:02:12]} Bg4 {[%emt 0:01:04]} 6. d5 {[%emt 0:00:36]} Nd4 {[%emt 0:00:07]} 7. Be2 {[%emt 0:00:06]} Nxe2 {[%emt 0:02:18]} 8. Qxe2 {[%emt 0:00:18]} Be7 {[%emt 0:00:10]} 9. h3 {[%emt 0:00:31]} Bd7 {[%emt 0:00:12]} 10. a4 {[%emt 0:05:54]} a5 {[%emt 0:17:17]} 11. Be3 {[%emt 0:01:15]} O-O {[%emt 0:04:07]} 12. O-O-O {[%emt 0:01:21]} c6 {[%emt 0:02:41]} 13. Nxe5 {[%emt 0:31:34]} dxe5 {[%emt 0:06:26]} 14. d6 {[%emt 0:01:44]} Re8 {[%emt 0:03:01]} 15. dxe7 {[%emt 0:00:07]} Qxe7 {[%emt 0:00:05]} 16. c5 {[%emt 0:12:15]} Be6 {[%emt 0:01:42]} 17. Qc2 {[%emt 0:01:28]} Red8 {[%emt 0:19:41]} 18. Ne2 {[%emt 0:02:04]} h6 {[%emt 0:04:51]} 19. f3 {[%emt 0:02:25]} Rxd1+ {[%emt 0:07:58]} 20. Rxd1 {[%emt 0:01:21]} Ne8 {[%emt 0:03:23]} 21. Qc3 {[%emt 0:09:27]} f6 {[%emt 0:00:25]} 22. Kb1 {[%emt 0:07:53]} Bf7 {[%emt 0:03:25]} 23. Qd3 {[%emt 0:03:53]} Be6 {[%emt 0:00:57]} 24. Qc3 {[%emt 0:02:53]} Bf7 {[%emt 0:00:29]} 25. Rd3 {[%emt 0:01:57]} Nc7 {[%emt 0:07:12]} 26. Qd2 {[%emt 0:00:33]} Qe6 {[%emt 0:02:39]} 27. Nc1 {[%emt 0:00:39]} f5 {[%emt 0:06:51]} 28. Rd6 {[%emt 0:02:02]} Qc4 {[%emt 0:00:43]} 29. b3 {[%emt 0:04:28]} Qf1 {[%emt 0:00:17]} 30. Rd7 {[%emt 0:00:03]} Ne8 {[%emt 0:01:09]} 31. Rxb7 {[%emt 0:01:35]} fxe4 {[%emt 0:00:34]} 32. Qd7 {[%emt 0:02:27]} Bg6 {[%emt 0:00:37]} 33. Qxc6 {[%emt 0:00:02]} Kh7 {[%emt 0:00:48]} 34. Rb6 {[%emt 0:00:39]} Nf6 {[%emt 0:00:27]} 35. Qxa8 {[%emt 0:00:07]} exf3+ {[%emt 0:00:06]} 36. Kb2 {[%emt 0:01:25]} fxg2 {[%emt 0:02:19]} 37. Rxf6 {[%emt 0:00:26]} gxf6 {[%emt 0:00:20]} 38. Qa7+ {[%emt 0:00:05]} Kg8 {[%emt 0:00:10]} 39. c6 {[%emt 0:00:50]} Qf5 {[%emt 0:02:46]} 40. Ka3 {[%emt 0:01:51]} Qb1 {[%emt 0:00:51]} 41. c7 {[%emt 0:31:31]} 1-0

[Event "Teplice Open 2019"]
[Site "Teplice"]
[Date "2019.06.21"]
[Round "7.6"]
[White "Janik, Igor"]
[Black "Lagarde, Maxime"]
[Result "1/2-1/2"]
[ECO "D77"]
[WhiteElo "2483"]
[BlackElo "2599"]
[Annotator "ChessBase"]
[PlyCount "66"]
[EventDate "2019.06.15"]
[EventType "swiss"]
[EventCountry "CZE"]
[SourceTitle "playchess.com"]
[Source "ChessBase"]
[SourceQuality "1"]
[TimeControl "40/5400+30:1800+30"]

1. d4 {[%emt 0:00:00]} Nf6 {[%emt 0:01:21]} 2. c4 {[%emt 0:00:00]} g6 {[%emt 0:00:11]} 3. Nf3 {[%emt 0:00:00]} Bg7 {[%emt 0:00:08]} 4. g3 {[%emt 0:00:00]} d5 {[%emt 0:00:20]} 5. Bg2 {[%emt 0:00:03]} O-O {[%emt 0:03:17]} 6. O-O {[%emt 0:00:07]} dxc4 {[%emt 0:02:41]} 7. Na3 {[%emt 0:00:08]} c3 {[%emt 0:01:12]} 8. bxc3 {[%emt 0:00:08]} c5 {[%emt 0:00:21]} 9. Bb2 {[%emt 0:00:11]} Nc6 {[%emt 0:06:08]} 10. Re1 {[%emt 0:00:12]} Bg4 {[%emt 0:09:52]} 11. Nc4 {[%emt 0:04:46]} Qc8 {[%emt 0:02:23]} 12. Ne3 {[%emt 0:09:07]} Bh3 {[%emt 0:02:04]} 13. d5 {[%emt 0:01:46]} Rd8 {[%emt 0:04:23]} 14. Qb3 {[%emt 0:04:31]} Na5 {[%emt 0:06:19]} 15. Qa4 {[%emt 0:00:08]} b6 {[%emt 0:01:35]} 16. c4 {[%emt 0:00:42]} Bh6 {[%emt 0:04:07]} 17. Nd1 {[%emt 0:08:32]} Bxg2 {[%emt 0:05:35]} 18. Kxg2 {[%emt 0:00:06]} Ne4 {[%emt 0:00:35]} 19. e3 {[%emt 0:10:14]} Nd6 {[%emt 0:09:43]} 20. Nd2 {[%emt 0:01:01]} Qd7 {[%emt 0:01:04]} 21. Qxd7 {[%emt 0:00:34]} Rxd7 {[%emt 0:00:06]} 22. Rc1 {[%emt 0:00:10]} Re8 {[%emt 0:03:36]} 23. Be5 {[%emt 0:01:55]} f5 {[%emt 0:04:29]} 24. Bxd6 {[%emt 0:02:00]} exd6 {[%emt 0:00:49]} 25. f4 {[%emt 0:02:14]} Bg7 {[%emt 0:00:47]} 26. a4 {[%emt 0:10:06]} a6 {[%emt 0:02:32]} 27. Kf3 {[%emt 0:02:47]} b5 {[%emt 0:04:22]} 28. axb5 {[%emt 0:00:10]} axb5 {[%emt 0:00:03]} 29. cxb5 {[%emt 0:03:48]} Rb7 30. g4 {[%emt 0:05:12]} fxg4+ {[%emt 0:00:07]} 31. Kxg4 {[%emt 0:00:05]} Rxb5 {[%emt 0:01:44]} 32. Nf2 {[%emt 0:03:35]} Rb4 {[%emt 0:02:02]} 33. Kf3 {[%emt 0:00:00]} g5 {[%emt 0:14:22]} 1/2-1/2